[Event "Titled Tuesday Blitz April 26 Late 2022"]
[White "Lin, Dachey"]
[Black "Sadovsky, Artem"]
[WhiteFideId "2029650"]
[BlackFideId "4155840"]
[WhiteElo "2313"]
[BlackElo "2314"]
[Result "1-0"]
[Round "02"]
[TimeControl "180+1"]
[Date "2022.04.26"]
[WhiteClock "0:00:51"]
[BlackClock "0:00:04"]

1. Nc3 {[%clk 0:03:00]}  d5 {[%clk 0:02:59]} 2. e4 {[%clk 0:03:01]}  dxe4 {[%clk 0:02:54]} 3. Nxe4 {[%clk 0:03:01]}  e5 {[%clk 0:02:54]} 4. Bc4 {[%clk 0:03:01]}  g6 {[%clk 0:02:48]} 5. d3 {[%clk 0:02:47]}  h6 {[%clk 0:02:46]} 6. Nf3 {[%clk 0:02:40]}  f5 {[%clk 0:02:41]} 7. Nxe5 {[%clk 0:01:59]}  fxe4 {[%clk 0:02:37]} 8. Nxg6 {[%clk 0:01:59]}  Qf6 {[%clk 0:02:21]} 9. Qh5 {[%clk 0:01:54]}  Qf5 {[%clk 0:01:13]} 10. Qxf5 {[%clk 0:01:44]}  Bxf5 {[%clk 0:01:14]} 11. Nxh8 {[%clk 0:01:44]}  Ne7 {[%clk 0:01:14]} 12. Nf7 {[%clk 0:01:38]}  exd3 {[%clk 0:01:09]} 13. cxd3 {[%clk 0:01:37]}  b5 {[%clk 0:01:01]} 14. Bb3 {[%clk 0:01:37]}  Nbc6 {[%clk 0:00:52]} 15. Nxh6 {[%clk 0:01:33]}  Bxd3 {[%clk 0:00:49]} 16. Bf7+ {[%clk 0:01:30]}  Kd7 {[%clk 0:00:48]} 17. Be3 {[%clk 0:01:26]}  Ne5 {[%clk 0:00:33]} 18. O-O-O {[%clk 0:01:18]}  Bxh6 {[%clk 0:00:19]} 19. Bxh6 {[%clk 0:01:18]}  Kc6 {[%clk 0:00:20]} 20. Bf4 {[%clk 0:01:08]}  Nxf7 {[%clk 0:00:20]} 21. Rxd3 {[%clk 0:01:08]}  Nd5 {[%clk 0:00:21]} 22. Bg3 {[%clk 0:01:06]}  Re8 {[%clk 0:00:22]} 23. Rhd1 {[%clk 0:01:05]}  Nb4 {[%clk 0:00:22]} 24. Rc3+ {[%clk 0:01:06]}  Kb6 {[%clk 0:00:22]} 25. Rxc7 {[%clk 0:01:00]}  Ne5 {[%clk 0:00:15]} 26. Bxe5 {[%clk 0:00:55]}  Rxe5 {[%clk 0:00:16]} 27. Rcd7 {[%clk 0:00:55]}  Re2 {[%clk 0:00:15]} 28. a3 {[%clk 0:00:53]}  Nc6 {[%clk 0:00:12]} 29. R1d2 {[%clk 0:00:53]}  Re1+ {[%clk 0:00:12]} 30. Kc2 {[%clk 0:00:54]}  Re4 {[%clk 0:00:12]} 31. g3 {[%clk 0:00:52]}  a5 {[%clk 0:00:12]} 32. h4 {[%clk 0:00:53]}  Kc5 {[%clk 0:00:12]} 33. R7d5+ {[%clk 0:00:53]}  Kb6 {[%clk 0:00:12]} 34. h5 {[%clk 0:00:53]}  b4 {[%clk 0:00:12]} 35. axb4 {[%clk 0:00:53]}  Nxb4+ {[%clk 0:00:12]} 36. Kc3 {[%clk 0:00:53]}  Kc6 {[%clk 0:00:08]} 37. Rxa5 {[%clk 0:00:52]}  Kb6 {[%clk 0:00:05]} 38. Rf5 {[%clk 0:00:50]}  Na2+ {[%clk 0:00:05]} 39. Kd3 {[%clk 0:00:50]}  Re6 {[%clk 0:00:03]} 40. g4 {[%clk 0:00:50]}  Nb4+ {[%clk 0:00:03]} 41. Kc3 {[%clk 0:00:50]}  Na2+ {[%clk 0:00:04]} 42. Kb3 {[%clk 0:00:50]}  Nc1+ {[%clk 0:00:04]} 43. Kc2 {[%clk 0:00:50]}  Rc6+ {[%clk 0:00:05]} 44. Kd1 {[%clk 0:00:51]}  Nb3 {[%clk 0:00:04]} 45. Rdd5 {[%clk 0:00:51]}  Rc1+ {[%clk 0:00:04]} 46. Ke2 {[%clk 0:00:52]}  Rc2+ {[%clk 0:00:04]} 47. Kf1 {[%clk 0:00:52]}  Rc1+ {[%clk 0:00:04]} 48. Kg2 {[%clk 0:00:52]}  Kc6 {[%clk 0:00:04]} 49. h6 {[%clk 0:00:51]}  Rc2 {[%clk 0:00:03]} 50. h7 {[%clk 0:00:52]}  Nd4 {[%clk 0:00:03]} 51. Rxd4 {[%clk 0:00:51]}  Rxf2+ {[%clk 0:00:03]} 52. Kxf2 {[%clk 0:00:51]}  Kb6 {[%clk 0:00:04]} 53. h8=Q {[%clk 0:00:51]} 1-0


[Site "https://www.chess.com"]

[Event "Titled Tuesday Blitz April 26 Late 2022"]
[White "Lopez Del Alamo, Antonio"]
[Black "Batsiashvili, Nino"]
[WhiteFideId "2227339"]
[BlackFideId "13602993"]
[WhiteElo "2082"]
[BlackElo "2192"]
[Result "0-1"]
[Round "02"]
[TimeControl "180+1"]
[Date "2022.04.26"]
[WhiteClock "0:00:35"]
[BlackClock "0:02:02"]

1. e4 {[%clk 0:02:50]}  c6 {[%clk 0:02:59]} 2. d3 {[%clk 0:02:46]}  d5 {[%clk 0:03:00]} 3. Nd2 {[%clk 0:02:41]}  e5 {[%clk 0:02:54]} 4. Ngf3 {[%clk 0:02:40]}  Bd6 {[%clk 0:02:54]} 5. g3 {[%clk 0:02:40]}  Ne7 {[%clk 0:02:54]} 6. Bg2 {[%clk 0:02:39]}  O-O {[%clk 0:02:54]} 7. O-O {[%clk 0:02:37]}  Bg4 {[%clk 0:02:54]} 8. h3 {[%clk 0:02:36]}  Bxf3 {[%clk 0:02:49]} 9. Nxf3 {[%clk 0:02:32]}  Nd7 {[%clk 0:02:49]} 10. Re1 {[%clk 0:02:28]}  h6 {[%clk 0:02:47]} 11. b3 {[%clk 0:02:08]}  f5 {[%clk 0:02:46]} 12. Bb2 {[%clk 0:02:05]}  fxe4 {[%clk 0:02:42]} 13. dxe4 {[%clk 0:02:04]}  d4 {[%clk 0:02:42]} 14. Rf1 {[%clk 0:02:00]}  c5 {[%clk 0:02:42]} 15. Ne1 {[%clk 0:01:54]}  Ng6 {[%clk 0:02:34]} 16. Nd3 {[%clk 0:01:46]}  Qe7 {[%clk 0:02:20]} 17. a4 {[%clk 0:01:37]}  Rf7 {[%clk 0:02:19]} 18. Qh5 {[%clk 0:01:19]}  Kh7 {[%clk 0:02:17]} 19. Rae1 {[%clk 0:01:13]}  Raf8 {[%clk 0:02:12]} 20. Bc1 {[%clk 0:01:12]}  Bb8 {[%clk 0:02:04]} 21. f3 {[%clk 0:00:35]}  Nf6 {[%clk 0:02:02]} 0-1


[Site "https://www.chess.com"]

[Event "Titled Tuesday Blitz April 26 Late 2022"]
[White "Makarian, Rudik"]
[Black "Golubev, Mikhail"]
[WhiteFideId "44105681"]
[BlackFideId "14100983"]
[WhiteElo "2388"]
[BlackElo "2374"]
[Result "1-0"]
[Round "02"]
[TimeControl "180+1"]
[Date "2022.04.26"]
[WhiteClock "0:00:19"]
[BlackClock "0:00:09"]

1. d3 {[%clk 0:03:00]}  g6 {[%clk 0:02:58]} 2. g3 {[%clk 0:02:59]}  Bg7 {[%clk 0:02:59]} 3. Bg2 {[%clk 0:03:00]}  e5 {[%clk 0:02:58]} 4. c4 {[%clk 0:02:58]}  Nc6 {[%clk 0:02:58]} 5. Nc3 {[%clk 0:02:58]}  f5 {[%clk 0:02:58]} 6. e3 {[%clk 0:02:53]}  Nf6 {[%clk 0:02:55]} 7. Nge2 {[%clk 0:02:53]}  O-O {[%clk 0:02:48]} 8. O-O {[%clk 0:02:53]}  d6 {[%clk 0:02:47]} 9. Rb1 {[%clk 0:02:51]}  a5 {[%clk 0:02:43]} 10. a3 {[%clk 0:02:47]}  Ne7 {[%clk 0:02:40]} 11. b4 {[%clk 0:02:46]}  axb4 {[%clk 0:02:39]} 12. axb4 {[%clk 0:02:46]}  g5 {[%clk 0:02:36]} 13. f4 {[%clk 0:02:39]}  h6 {[%clk 0:02:32]} 14. Qd2 {[%clk 0:02:33]}  Ng6 {[%clk 0:02:32]} 15. Nd5 {[%clk 0:02:23]}  Nxd5 {[%clk 0:02:29]} 16. Bxd5+ {[%clk 0:02:24]}  Kh7 {[%clk 0:02:26]} 17. Bb2 {[%clk 0:02:24]}  c6 {[%clk 0:02:19]} 18. Bg2 {[%clk 0:02:23]}  Be6 {[%clk 0:02:07]} 19. Kh1 {[%clk 0:01:51]}  Qd7 {[%clk 0:02:04]} 20. Bc3 {[%clk 0:01:37]}  gxf4 {[%clk 0:01:47]} 21. exf4 {[%clk 0:01:36]}  Rae8 {[%clk 0:01:38]} 22. Ra1 {[%clk 0:01:26]}  e4 {[%clk 0:01:06]} 23. Nd4 {[%clk 0:01:14]}  Bg8 {[%clk 0:01:02]} 24. Rae1 {[%clk 0:01:05]}  c5 {[%clk 0:00:51]} 25. Nb5 {[%clk 0:01:04]}  exd3 {[%clk 0:00:35]} 26. Qxd3 {[%clk 0:00:57]}  Bxc3 {[%clk 0:00:32]} 27. Qxc3 {[%clk 0:00:58]}  cxb4 {[%clk 0:00:27]} 28. Qxb4 {[%clk 0:00:56]}  d5 {[%clk 0:00:23]} 29. c5 {[%clk 0:00:49]}  Re4 {[%clk 0:00:19]} 30. Bxe4 {[%clk 0:00:45]}  fxe4 {[%clk 0:00:20]} 31. Nd6 {[%clk 0:00:41]}  Be6 {[%clk 0:00:18]} 32. Qxb7 {[%clk 0:00:30]}  Qxb7 {[%clk 0:00:18]} 33. Nxb7 {[%clk 0:00:31]}  d4 {[%clk 0:00:18]} 34. Kg1 {[%clk 0:00:22]}  Bd5 {[%clk 0:00:17]} 35. Nd6 {[%clk 0:00:23]}  e3 {[%clk 0:00:17]} 36. Nb5 {[%clk 0:00:18]}  Nh4 {[%clk 0:00:17]} 37. Nxd4 {[%clk 0:00:17]}  Ng2 {[%clk 0:00:15]} 38. Re2 {[%clk 0:00:17]}  Bc4 {[%clk 0:00:15]} 39. Kxg2 {[%clk 0:00:17]}  Rd8 {[%clk 0:00:13]} 40. Rxe3 {[%clk 0:00:17]}  Bxf1+ {[%clk 0:00:08]} 41. Kxf1 {[%clk 0:00:18]}  Rxd4 {[%clk 0:00:09]} 42. Rc3 {[%clk 0:00:19]} 1-0


[Site "https://www.chess.com"]

[Event "Titled Tuesday Blitz April 26 Late 2022"]
[White "Maltsevskaya, Aleksandra"]
[Black "Sheng, Joshua"]
[WhiteFideId "24174041"]
[BlackFideId "2057360"]
[WhiteElo "2235"]
[BlackElo "2142"]
[Result "0-1"]
[Round "02"]
[TimeControl "180+1"]
[Date "2022.04.26"]
[WhiteClock "0:02:16"]
[BlackClock "0:02:16"]

1. e4 {[%clk 0:03:00]}  c5 {[%clk 0:03:00]} 2. Nf3 {[%clk 0:02:58]}  e6 {[%clk 0:03:00]} 3. d4 {[%clk 0:02:58]}  cxd4 {[%clk 0:03:01]} 4. Nxd4 {[%clk 0:02:59]}  a6 {[%clk 0:03:02]} 5. Bd3 {[%clk 0:02:59]}  Bc5 {[%clk 0:03:01]} 6. Nb3 {[%clk 0:02:58]}  Ba7 {[%clk 0:03:01]} 7. O-O {[%clk 0:02:59]}  Ne7 {[%clk 0:03:00]} 8. Qf3 {[%clk 0:02:58]}  Nbc6 {[%clk 0:02:56]} 9. Qg3 {[%clk 0:02:57]}  O-O {[%clk 0:02:56]} 10. Bg5 {[%clk 0:02:54]}  f6 {[%clk 0:02:54]} 11. Be3 {[%clk 0:02:52]}  Bxe3 {[%clk 0:02:53]} 12. Qxe3 {[%clk 0:02:53]}  d5 {[%clk 0:02:49]} 13. exd5 {[%clk 0:02:50]}  Nxd5 {[%clk 0:02:48]} 14. Qh3 {[%clk 0:02:50]}  f5 {[%clk 0:02:47]} 15. Rd1 {[%clk 0:02:45]}  Nf4 {[%clk 0:02:46]} 16. Qf3 {[%clk 0:02:44]}  Nxd3 {[%clk 0:02:46]} 17. Rxd3 {[%clk 0:02:44]}  Ne5 {[%clk 0:02:43]} 18. Qe2 {[%clk 0:02:36]}  Nxd3 {[%clk 0:02:42]} 19. cxd3 {[%clk 0:02:37]}  Qd6 {[%clk 0:02:31]} 20. d4 {[%clk 0:02:37]}  Bd7 {[%clk 0:02:29]} 21. Nc3 {[%clk 0:02:38]}  Bc6 {[%clk 0:02:29]} 22. Re1 {[%clk 0:02:37]}  Rfe8 {[%clk 0:02:28]} 23. Qh5 {[%clk 0:02:32]}  a5 {[%clk 0:02:22]} 24. h3 {[%clk 0:02:29]}  a4 {[%clk 0:02:21]} 25. Nc5 {[%clk 0:02:30]}  Qxd4 {[%clk 0:02:17]} 26. Nxe6 {[%clk 0:02:28]}  Qf6 {[%clk 0:02:17]} 27. Qe2 {[%clk 0:02:16]}  Bd7 {[%clk 0:02:16]} 0-1


[Site "https://www.chess.com"]

[Event "Titled Tuesday Blitz April 26 Late 2022"]
[White "Manukyan, Artyom"]
[Black "Melikhov, Evgeny V."]
[WhiteFideId "13305786"]
[BlackFideId "4122046"]
[WhiteElo "2034"]
[BlackElo "1931"]
[Result "1-0"]
[Round "02"]
[TimeControl "180+1"]
[Date "2022.04.26"]
[WhiteClock "0:00:06"]
[BlackClock "0:00:13"]

1. e4 {[%clk 0:03:00]}  e5 {[%clk 0:02:58]} 2. Nf3 {[%clk 0:02:59]}  Nc6 {[%clk 0:02:59]} 3. Bb5 {[%clk 0:02:55]}  a6 {[%clk 0:02:58]} 4. Bxc6 {[%clk 0:02:43]}  dxc6 {[%clk 0:02:58]} 5. O-O {[%clk 0:02:44]}  f6 {[%clk 0:02:57]} 6. d4 {[%clk 0:02:25]}  exd4 {[%clk 0:02:56]} 7. Nxd4 {[%clk 0:02:26]}  c5 {[%clk 0:02:56]} 8. Nb3 {[%clk 0:02:26]}  Qxd1 {[%clk 0:02:55]} 9. Rxd1 {[%clk 0:02:27]}  Bd7 {[%clk 0:02:52]} 10. Nc3 {[%clk 0:02:25]}  O-O-O {[%clk 0:02:51]} 11. Bf4 {[%clk 0:02:17]}  Be6 {[%clk 0:02:50]} 12. Rxd8+ {[%clk 0:02:03]}  Kxd8 {[%clk 0:02:50]} 13. Rd1+ {[%clk 0:02:03]}  Kc8 {[%clk 0:02:50]} 14. Nd5 {[%clk 0:02:04]}  Bxd5 {[%clk 0:02:50]} 15. Rxd5 {[%clk 0:02:05]}  b6 {[%clk 0:02:47]} 16. a4 {[%clk 0:02:03]}  a5 {[%clk 0:02:47]} 17. f3 {[%clk 0:02:02]}  Ne7 {[%clk 0:02:45]} 18. Rd2 {[%clk 0:02:02]}  Nc6 {[%clk 0:02:45]} 19. Kf2 {[%clk 0:02:01]}  Be7 {[%clk 0:02:44]} 20. Ke3 {[%clk 0:02:00]}  Rd8 {[%clk 0:02:43]} 21. Rxd8+ {[%clk 0:02:00]}  Bxd8 {[%clk 0:02:40]} 22. c3 {[%clk 0:02:01]}  Kd7 {[%clk 0:02:37]} 23. Nd2 {[%clk 0:01:59]}  Be7 {[%clk 0:02:36]} 24. Bg3 {[%clk 0:01:58]}  Bd6 {[%clk 0:02:22]} 25. f4 {[%clk 0:01:56]}  Ke6 {[%clk 0:02:19]} 26. Nc4 {[%clk 0:01:54]}  h5 {[%clk 0:02:08]} 27. f5+ {[%clk 0:01:55]}  Kd7 {[%clk 0:01:59]} 28. Bxd6 {[%clk 0:01:55]}  cxd6 {[%clk 0:01:58]} 29. Nxb6+ {[%clk 0:01:56]}  Ke7 {[%clk 0:01:43]} 30. Nc4 {[%clk 0:01:54]}  Kd7 {[%clk 0:01:32]} 31. h4 {[%clk 0:01:54]}  Ke7 {[%clk 0:01:29]} 32. b3 {[%clk 0:01:30]}  Kd7 {[%clk 0:01:28]} 33. Nb6+ {[%clk 0:01:20]}  Ke7 {[%clk 0:01:26]} 34. Nd5+ {[%clk 0:01:20]}  Kd7 {[%clk 0:01:26]} 35. Nf4 {[%clk 0:01:21]}  c4 {[%clk 0:01:03]} 36. bxc4 {[%clk 0:01:19]}  Ne5 {[%clk 0:01:02]} 37. Nxh5 {[%clk 0:00:59]}  Nxc4+ {[%clk 0:01:01]} 38. Kd4 {[%clk 0:01:00]}  Nb2 {[%clk 0:01:01]} 39. Nxg7 {[%clk 0:00:57]}  Nxa4 {[%clk 0:01:01]} 40. h5 {[%clk 0:00:57]}  Ke7 {[%clk 0:00:57]} 41. h6 {[%clk 0:00:55]}  Kf7 {[%clk 0:00:58]} 42. Ne8 {[%clk 0:00:54]}  Kg8 {[%clk 0:00:54]} 43. Nxf6+ {[%clk 0:00:53]}  Kf7 {[%clk 0:00:53]} 44. Ne8 {[%clk 0:00:15]}  Kg8 {[%clk 0:00:53]} 45. g4 {[%clk 0:00:15]}  Nc5 {[%clk 0:00:52]} 46. g5 {[%clk 0:00:15]}  a4 {[%clk 0:00:52]} 47. g6 {[%clk 0:00:14]}  a3 {[%clk 0:00:50]} 48. h7+ {[%clk 0:00:14]}  Kh8 {[%clk 0:00:50]} 49. Nxd6 {[%clk 0:00:06]}  Kg7 {[%clk 0:00:16]} 50. Nf7 {[%clk 0:00:05]}  Ne6+ {[%clk 0:00:13]} 51. fxe6 {[%clk 0:00:05]}  a2 {[%clk 0:00:13]} 52. h8=Q+ {[%clk 0:00:06]}  Kxg6 {[%clk 0:00:13]} 53. Qh1 {[%clk 0:00:06]} 1-0


[Site "https://www.chess.com"]

[Event "Titled Tuesday Blitz April 26 Late 2022"]
[White "Mardov, Dimitar"]
[Black "Kozin, Yuri"]
[WhiteFideId "30919495"]
[BlackFideId "4129920"]
[WhiteElo "2185"]
[BlackElo "2579"]
[Result "1-0"]
[Round "02"]
[TimeControl "180+1"]
[Date "2022.04.26"]
[WhiteClock "0:00:06"]
[BlackClock "0:00:12"]

1. c4 {[%clk 0:03:00]}  c5 {[%clk 0:02:59]} 2. Nf3 {[%clk 0:03:00]}  Nf6 {[%clk 0:03:00]} 3. Nc3 {[%clk 0:02:59]}  e6 {[%clk 0:02:59]} 4. d4 {[%clk 0:02:59]}  cxd4 {[%clk 0:03:00]} 5. Nxd4 {[%clk 0:02:59]}  a6 {[%clk 0:03:00]} 6. g3 {[%clk 0:02:59]}  Qc7 {[%clk 0:03:00]} 7. b3 {[%clk 0:02:49]}  b5 {[%clk 0:02:47]} 8. Bg2 {[%clk 0:02:46]}  Bb7 {[%clk 0:02:47]} 9. Bxb7 {[%clk 0:02:37]}  Qxb7 {[%clk 0:02:47]} 10. O-O {[%clk 0:02:37]}  bxc4 {[%clk 0:02:46]} 11. bxc4 {[%clk 0:02:38]}  Be7 {[%clk 0:02:41]} 12. Bf4 {[%clk 0:02:34]}  O-O {[%clk 0:02:32]} 13. Rb1 {[%clk 0:02:29]}  Qc8 {[%clk 0:02:32]} 14. Na4 {[%clk 0:02:25]}  Bc5 {[%clk 0:02:16]} 15. Rxb8 {[%clk 0:01:48]}  Rxb8 {[%clk 0:02:15]} 16. Bxb8 {[%clk 0:01:48]}  Bxd4 {[%clk 0:02:10]} 17. Bd6 {[%clk 0:01:48]}  Qxc4 {[%clk 0:02:02]} 18. Bxf8 {[%clk 0:01:47]}  Kxf8 {[%clk 0:02:03]} 19. e3 {[%clk 0:01:34]}  Be5 {[%clk 0:01:58]} 20. Qb3 {[%clk 0:01:25]}  Qg4 {[%clk 0:01:45]} 21. Nc5 {[%clk 0:01:02]}  Qh3 {[%clk 0:01:30]} 22. Qb7 {[%clk 0:01:01]}  d5 {[%clk 0:00:53]} 23. Nd7+ {[%clk 0:00:34]}  Nxd7 {[%clk 0:00:46]} 24. Qxd7 {[%clk 0:00:35]}  g6 {[%clk 0:00:46]} 25. Qc8+ {[%clk 0:00:27]}  Kg7 {[%clk 0:00:46]} 26. Qxa6 {[%clk 0:00:27]}  h5 {[%clk 0:00:46]} 27. Qe2 {[%clk 0:00:25]}  h4 {[%clk 0:00:45]} 28. Qf3 {[%clk 0:00:24]}  g5 {[%clk 0:00:36]} 29. a4 {[%clk 0:00:19]}  hxg3 {[%clk 0:00:33]} 30. hxg3 {[%clk 0:00:20]}  Qh8 {[%clk 0:00:32]} 31. Rb1 {[%clk 0:00:18]}  Qa8 {[%clk 0:00:31]} 32. Qd1 {[%clk 0:00:18]}  Qa7 {[%clk 0:00:25]} 33. Kg2 {[%clk 0:00:17]}  Qa8 {[%clk 0:00:23]} 34. Kg1 {[%clk 0:00:17]}  Qa7 {[%clk 0:00:23]} 35. Qb3 {[%clk 0:00:16]}  Qa5 {[%clk 0:00:20]} 36. Qb5 {[%clk 0:00:15]}  Qd2 {[%clk 0:00:19]} 37. Rf1 {[%clk 0:00:14]}  Bc3 {[%clk 0:00:17]} 38. Qb6 {[%clk 0:00:12]}  e5 {[%clk 0:00:17]} 39. Qd8 {[%clk 0:00:08]}  Kg6 {[%clk 0:00:15]} 40. Qd6+ {[%clk 0:00:08]}  f6 {[%clk 0:00:15]} 41. Qd7 {[%clk 0:00:07]}  d4 {[%clk 0:00:15]} 42. exd4 {[%clk 0:00:08]}  Bxd4 {[%clk 0:00:16]} 43. Qe8+ {[%clk 0:00:06]}  Kf5 {[%clk 0:00:15]} 44. Qc8+ {[%clk 0:00:06]}  Kg6 {[%clk 0:00:16]} 45. Qg8+ {[%clk 0:00:05]}  Kf5 {[%clk 0:00:16]} 46. Qh7+ {[%clk 0:00:06]}  Ke6 {[%clk 0:00:16]} 47. Kg2 {[%clk 0:00:06]}  Qc2 {[%clk 0:00:12]} 48. Qxc2 {[%clk 0:00:06]} 1-0


[Site "https://www.chess.com"]

[Event "Titled Tuesday Blitz April 26 Late 2022"]
[White "Martic, Ivan"]
[Black "Moiseenko, Alexander"]
[WhiteFideId "929301"]
[BlackFideId "14102560"]
[WhiteElo "2317"]
[BlackElo "2577"]
[Result "0-1"]
[Round "02"]
[TimeControl "180+1"]
[Date "2022.04.26"]
[WhiteClock "0:00:10"]
[BlackClock "0:00:10"]

1. d4 {[%clk 0:03:00]}  Nf6 {[%clk 0:02:57]} 2. Nf3 {[%clk 0:03:00]}  c5 {[%clk 0:02:55]} 3. d5 {[%clk 0:03:00]}  b5 {[%clk 0:02:55]} 4. c3 {[%clk 0:02:52]}  g6 {[%clk 0:02:53]} 5. a4 {[%clk 0:02:50]}  b4 {[%clk 0:02:52]} 6. e3 {[%clk 0:02:35]}  Bg7 {[%clk 0:02:51]} 7. Bc4 {[%clk 0:02:32]}  O-O {[%clk 0:02:46]} 8. O-O {[%clk 0:02:32]}  d6 {[%clk 0:02:45]} 9. Re1 {[%clk 0:02:27]}  bxc3 {[%clk 0:02:38]} 10. Nxc3 {[%clk 0:02:26]}  Bg4 {[%clk 0:02:38]} 11. e4 {[%clk 0:02:18]}  Nbd7 {[%clk 0:02:37]} 12. Be2 {[%clk 0:02:14]}  Rb8 {[%clk 0:02:37]} 13. Nd2 {[%clk 0:02:08]}  Bxe2 {[%clk 0:02:35]} 14. Rxe2 {[%clk 0:02:09]}  Rb4 {[%clk 0:02:33]} 15. Qc2 {[%clk 0:02:06]}  Qa5 {[%clk 0:01:53]} 16. Ra3 {[%clk 0:01:54]}  Qa6 {[%clk 0:01:38]} 17. Re1 {[%clk 0:01:49]}  Ng4 {[%clk 0:01:28]} 18. h3 {[%clk 0:01:45]}  Nge5 {[%clk 0:01:12]} 19. Nb5 {[%clk 0:01:45]}  c4 {[%clk 0:00:58]} 20. Rf1 {[%clk 0:01:17]}  Nc5 {[%clk 0:00:57]} 21. f4 {[%clk 0:01:12]}  Ned3 {[%clk 0:00:40]} 22. Nxc4 {[%clk 0:01:11]}  Nxc1 {[%clk 0:00:28]} 23. Rxc1 {[%clk 0:01:07]}  Nxa4 {[%clk 0:00:28]} 24. Nc7 {[%clk 0:00:57]}  Qb7 {[%clk 0:00:28]} 25. Rxa4 {[%clk 0:00:53]}  Rxa4 {[%clk 0:00:29]} 26. Qxa4 {[%clk 0:00:54]}  Qxc7 {[%clk 0:00:29]} 27. b4 {[%clk 0:00:40]}  Rc8 {[%clk 0:00:22]} 28. Rc2 {[%clk 0:00:38]}  Qb8 {[%clk 0:00:18]} 29. Kh1 {[%clk 0:00:32]}  Rc7 {[%clk 0:00:18]} 30. b5 {[%clk 0:00:23]}  Qc8 {[%clk 0:00:13]} 31. b6 {[%clk 0:00:21]}  axb6 {[%clk 0:00:13]} 32. Nxb6 {[%clk 0:00:21]}  Qb8 {[%clk 0:00:14]} 33. Rxc7 {[%clk 0:00:18]}  Qxc7 {[%clk 0:00:14]} 34. Qc6 {[%clk 0:00:18]}  Qd8 {[%clk 0:00:12]} 35. Qc8 {[%clk 0:00:12]}  Qxc8 {[%clk 0:00:11]} 36. Nxc8 {[%clk 0:00:12]}  Kf8 {[%clk 0:00:12]} 37. Kg1 {[%clk 0:00:12]}  f5 {[%clk 0:00:12]} 38. exf5 {[%clk 0:00:11]}  Bd4+ {[%clk 0:00:12]} 39. Kf1 {[%clk 0:00:11]}  gxf5 {[%clk 0:00:12]} 40. g4 {[%clk 0:00:09]}  Ke8 {[%clk 0:00:12]} 41. gxf5 {[%clk 0:00:08]}  Kd7 {[%clk 0:00:12]} 42. f6 {[%clk 0:00:09]}  exf6 {[%clk 0:00:10]} 43. Ke2 {[%clk 0:00:06]}  Kxc8 {[%clk 0:00:10]} 44. Kd3 {[%clk 0:00:07]}  Ba1 {[%clk 0:00:09]} 45. Ke4 {[%clk 0:00:08]}  Kd7 {[%clk 0:00:09]} 46. Kf5 {[%clk 0:00:08]}  Ke7 {[%clk 0:00:09]} 47. h4 {[%clk 0:00:09]}  Kf7 {[%clk 0:00:10]} 48. h5 {[%clk 0:00:10]}  Bb2 {[%clk 0:00:10]} 49. h6 {[%clk 0:00:10]}  Bc1 {[%clk 0:00:10]} 50. Ke4 {[%clk 0:00:10]}  Kg6 {[%clk 0:00:10]} 0-1


[Site "https://www.chess.com"]

[Event "Titled Tuesday Blitz April 26 Late 2022"]
[White "Migot, Tangi"]
[Black "Petrova, Irina"]
[WhiteFideId "662445"]
[BlackFideId "14124122"]
[WhiteElo "2511"]
[BlackElo "1993"]
[Result "1-0"]
[Round "02"]
[TimeControl "180+1"]
[Date "2022.04.26"]
[WhiteClock "0:01:18"]
[BlackClock "0:02:06"]

1. g3 {[%clk 0:03:00]}  e5 {[%clk 0:02:58]} 2. Bg2 {[%clk 0:02:59]}  d6 {[%clk 0:02:58]} 3. d4 {[%clk 0:02:59]}  exd4 {[%clk 0:02:56]} 4. Qxd4 {[%clk 0:03:00]}  Nc6 {[%clk 0:02:57]} 5. Qa4 {[%clk 0:03:00]}  Bd7 {[%clk 0:02:56]} 6. Nc3 {[%clk 0:03:00]}  Nf6 {[%clk 0:02:56]} 7. Nf3 {[%clk 0:02:59]}  g6 {[%clk 0:02:56]} 8. Bg5 {[%clk 0:02:59]}  Bg7 {[%clk 0:02:56]} 9. O-O-O {[%clk 0:02:55]}  h6 {[%clk 0:02:54]} 10. Bxf6 {[%clk 0:02:53]}  Bxf6 {[%clk 0:02:55]} 11. Nd5 {[%clk 0:02:49]}  Bg7 {[%clk 0:02:53]} 12. Qe4+ {[%clk 0:02:41]}  Ne7 {[%clk 0:02:53]} 13. Nd4 {[%clk 0:02:35]}  O-O {[%clk 0:02:50]} 14. Nxe7+ {[%clk 0:02:26]}  Kh7 {[%clk 0:02:47]} 15. Nd5 {[%clk 0:02:25]}  c5 {[%clk 0:02:44]} 16. Nf3 {[%clk 0:02:22]}  Bc6 {[%clk 0:02:44]} 17. h4 {[%clk 0:02:18]}  Qa5 {[%clk 0:02:42]} 18. a3 {[%clk 0:02:16]}  b5 {[%clk 0:02:10]} 19. h5 {[%clk 0:01:59]}  b4 {[%clk 0:02:09]} 20. hxg6+ {[%clk 0:01:46]}  fxg6 {[%clk 0:02:10]} 21. Ng5+ {[%clk 0:01:40]}  Kh8 {[%clk 0:02:09]} 22. Qxg6 {[%clk 0:01:35]}  Bxb2+ {[%clk 0:02:09]} 23. Kxb2 {[%clk 0:01:27]}  bxa3+ {[%clk 0:02:06]} 24. Ka1 {[%clk 0:01:18]} 1-0


[Site "https://www.chess.com"]

[Event "Titled Tuesday Blitz April 26 Late 2022"]
[White "Moraes, Nelson da Silva"]
[Black "Kohler, Aran"]
[WhiteFideId "2140772"]
[BlackFideId "1002856"]
[WhiteElo "2123"]
[BlackElo "2296"]
[Result "1-0"]
[Round "02"]
[TimeControl "180+1"]
[Date "2022.04.26"]
[WhiteClock "0:01:02"]
[BlackClock "0:00:32"]

1. e4 {[%clk 0:02:59]}  c6 {[%clk 0:02:57]} 2. d4 {[%clk 0:02:56]}  d5 {[%clk 0:02:57]} 3. exd5 {[%clk 0:02:56]}  cxd5 {[%clk 0:02:57]} 4. c4 {[%clk 0:02:56]}  Nf6 {[%clk 0:02:55]} 5. Nc3 {[%clk 0:02:55]}  dxc4 {[%clk 0:02:53]} 6. Nf3 {[%clk 0:02:55]}  e6 {[%clk 0:02:47]} 7. Bxc4 {[%clk 0:02:54]}  a6 {[%clk 0:02:48]} 8. O-O {[%clk 0:02:49]}  Be7 {[%clk 0:02:48]} 9. Ne5 {[%clk 0:02:47]}  b5 {[%clk 0:02:48]} 10. Qf3 {[%clk 0:02:44]}  Ra7 {[%clk 0:02:43]} 11. Bd3 {[%clk 0:02:40]}  Bb7 {[%clk 0:02:41]} 12. Qg3 {[%clk 0:02:38]}  g6 {[%clk 0:02:09]} 13. Bh6 {[%clk 0:02:35]}  Nbd7 {[%clk 0:01:58]} 14. Rfe1 {[%clk 0:02:30]}  Nh5 {[%clk 0:01:54]} 15. Qe3 {[%clk 0:02:25]}  Nxe5 {[%clk 0:01:54]} 16. dxe5 {[%clk 0:02:15]}  Qa8 {[%clk 0:01:40]} 17. Rad1 {[%clk 0:02:03]}  Bxg2 {[%clk 0:01:32]} 18. Nxb5 {[%clk 0:01:59]}  Rd7 {[%clk 0:01:21]} 19. Nd6+ {[%clk 0:01:56]}  Bxd6 {[%clk 0:01:17]} 20. exd6 {[%clk 0:01:57]}  Bh1 {[%clk 0:01:15]} 21. Bf1 {[%clk 0:01:52]}  Bd5 {[%clk 0:01:10]} 22. Qc3 {[%clk 0:01:44]}  Rg8 {[%clk 0:01:01]} 23. Qe5 {[%clk 0:01:42]}  Qc6 {[%clk 0:01:00]} 24. Qxd5 {[%clk 0:01:37]}  Qxd5 {[%clk 0:00:52]} 25. Rxd5 {[%clk 0:01:38]}  g5 {[%clk 0:00:53]} 26. Rxg5 {[%clk 0:01:34]}  Rxg5+ {[%clk 0:00:52]} 27. Bxg5 {[%clk 0:01:35]}  Rxd6 {[%clk 0:00:53]} 28. Be2 {[%clk 0:01:32]}  Ng7 {[%clk 0:00:52]} 29. Rd1 {[%clk 0:01:32]}  Rxd1+ {[%clk 0:00:47]} 30. Bxd1 {[%clk 0:01:31]}  Nf5 {[%clk 0:00:47]} 31. Ba4+ {[%clk 0:01:27]}  Kf8 {[%clk 0:00:46]} 32. Bf6 {[%clk 0:01:21]}  Nd6 {[%clk 0:00:42]} 33. f3 {[%clk 0:01:16]}  h5 {[%clk 0:00:41]} 34. Kg2 {[%clk 0:01:15]}  Nc4 {[%clk 0:00:35]} 35. Kg3 {[%clk 0:01:05]}  Nb6 {[%clk 0:00:32]} 36. Bc6 {[%clk 0:01:02]} 1-0


[Site "https://www.chess.com"]